fUST/lending_fUST_20260427
["ID","MTS","AMOUNT","RATE_DAILY","PERIOD"]
[421206676,1777252246679,-2081.83,0.00019452,2]
[421206677,1777252246689,-693.55,0.00019452,2]
[421206678,1777252246699,-1525.92,0.00019452,2]
[421206679,1777252246708,-500.0,0.00019452,2]
[421206680,1777252246718,-500.0,0.00019452,2]
[421206681,1777252246727,-1000.0,0.00019452,2]
[421206682,1777252246736,-48.2217802,0.00019452,2]
[421206683,1777252246747,-4580.9180064,0.00019452,2]
[421206684,1777252246759,-575.9666368,0.00019452,2]
[421206685,1777252246777,-1913.99889752,0.00019452,2]
[421206686,1777252246787,-2105.42959719,0.00019452,2]
[421206687,1777252247119,-53.13371502,0.00019452,2]
[421206688,1777252247135,-1424.68136687,0.00019452,2]
[421206689,1777252247144,-500.0,0.00019452,2]
[421206690,1777252247154,-500.0,0.00019452,2]
[421206691,1777252247163,-260.72358288,0.00019452,2]
[421206692,1777252247251,-1375.93,0.00019178,2]
[421206693,1777252247261,-239.27641712,0.00019452,2]
[421206694,1777252247270,-500.0,0.00019452,2]
[421206695,1777252247279,-500.0,0.00019452,2]
[421206696,1777252247288,-2622.05,0.00019452,2]
[421206697,1777252247298,-530.92476416,0.00019452,2]
[421206698,1777252247307,-500.0,0.00019452,2]
[421206699,1777252247317,-2837.96990217,0.00019452,2]
[421206700,1777252247329,-1903.25009783,0.00019452,2]
[421206701,1777252247339,-416.32983103,0.00019452,2]
[421206702,1777252247348,-500.0,0.00019452,2]
[421206703,1777252247357,-2161.1715204,0.00019452,2]
[421206704,1777252247369,-779.6784796,0.00019452,2]
[421206705,1777252247378,-7118.91,0.00019452,2]
[421206706,1777252247387,-1060.42,0.00019452,2]
[421206707,1777252247395,-382.06695063,0.00019452,2]
[421206708,1777252247801,-500.0,0.00019178,2]
[421206709,1777252247811,-117.93304937,0.00019452,2]
[421206710,1777252247820,-65.56295468,0.00019452,2]
[421206711,1777252248043,-434.43704532,0.00019452,2]
[421206712,1777252248053,-10721.83,0.00019452,2]
[421206713,1777252248062,-6988.34,0.00019452,2]
[421206714,1777252248072,-500.0,0.00019452,2]
[421206715,1777252248081,-1620.36,0.00019452,2]
[421206716,1777252248091,-615.58161832,0.00019452,2]
[421206717,1777252248100,-3244.79,0.00019452,2]
[421206718,1777252248110,-620.61,0.00019452,2]
[421206719,1777252248120,-6366.08,0.00019452,2]
[421206720,1777252248129,-818.97,0.00019452,2]
[421206721,1777252248139,-249.08444612,0.00019452,2]
[421206722,1777252248148,-500.0,0.00019452,2]
[421206723,1777252248158,-502.06,0.00019452,2]
[421206724,1777252248168,-500.0,0.00019452,2]
[421206725,1777252248177,-545.0,0.00019452,2]
[421206726,1777252248187,-185.73658821,0.00019452,2]
[421206727,1777252248196,-500.0,0.00019452,2]
[421206728,1777252248209,-500.0,0.00019452,2]
[421206729,1777252248219,-1996.46,0.00019452,2]
[421206730,1777252248228,-500.0,0.00019452,2]
[421206731,1777252248238,-747.1,0.00019452,2]
[421206732,1777252248247,-903.95,0.00019452,2]
[421206733,1777252248257,-500.0,0.00019452,2]
[421206734,1777252248266,-500.0,0.00019452,2]
[421206735,1777252248275,-500.0,0.00019452,2]
[421206736,1777252248285,-530.48,0.00019452,2]
[421206737,1777252248294,-2461.52,0.00019452,2]
[421206738,1777252248304,-500.0,0.00019452,2]
[421206739,1777252248314,-712.42,0.00019452,2]
[421206740,1777252248323,-2331.95,0.00019452,2]
[421206741,1777252248332,-569.52,0.00019452,2]
[421206742,1777252248342,-1993.04,0.00019452,2]
[421206743,1777252248351,-7146.82,0.00019452,2]
[421206744,1777252248361,-4308.46,0.00019452,2]
[421206745,1777252248371,-415.90732324,0.00019452,2]
[421206746,1777252248380,-6019.62,0.00019452,2]
[421206747,1777252248391,-500.0,0.00019452,2]
[421206748,1777252248401,-500.0,0.00019452,2]
[421206749,1777252248411,-1151.57,0.00019452,2]
[421206750,1777252248421,-1104.22,0.00019452,2]
[421206751,1777252248431,-3485.17,0.00019452,2]
[421206752,1777252248443,-500.0,0.00019452,2]
[421206753,1777252248452,-500.0,0.00019452,2]
[421206754,1777252248461,-500.0,0.00019452,2]
[421206755,1777252248471,-1254.9393,0.00019452,2]
[421206756,1777252248480,-500.0,0.00019452,2]
[421206757,1777252248490,-357.26716218,0.00019452,2]
[421206758,1777252248499,-2991.30183999,0.00019452,2]
[421206965,1777253432438,-501.0,0.00012791,2]
[421206967,1777253432450,-1706.42021178,0.00012791,2]
[421206968,1777253432461,-673.65800602,0.00012791,2]
[421206969,1777253432472,-2118.9217822,0.00012791,2]
[421206970,1777253432483,-150.0,0.00013184,2]
[421206971,1777253432493,-378.15734381,0.00013451,2]
[421206972,1777253432502,-1000.0,0.00013699,2]
[421206973,1777253432512,-500.0,0.00014123,2]
[421206974,1777253432521,-177.0,0.00015184,2]
[421206975,1777253432531,-204.0,0.00017184,2]
[421206976,1777253432541,-1200.0,0.00017758,2]
[421206977,1777253432550,-209.29027581,0.00018115,2]
[421206978,1777253432562,-90.70972419,0.00018115,2]
[421206979,1777253432572,-300.0,0.00018116,2]
[421206980,1777253432582,-300.0,0.00018116,2]
[421206981,1777253432592,-300.0,0.00018116,2]
[421206982,1777253432602,-300.0,0.00018116,2]
[421206983,1777253432611,-300.0,0.00018116,2]
[421206984,1777253432621,-14.81886698,0.00018116,2]
[421207013,1777253439996,-285.18113302,0.00018116,2]
[421207015,1777253440005,-300.0,0.00018116,2]
[421207016,1777253440015,-300.0,0.00018116,2]
[421207017,1777253440024,-278.28652471,0.00018116,2]
[421207018,1777253440036,-21.71347529,0.00018116,2]
[421207019,1777253440045,-300.0,0.00018116,2]
[421207020,1777253440055,-300.0,0.00018116,2]
[421207021,1777253440065,-300.0,0.00018116,2]
[421207022,1777253440074,-300.0,0.00018116,2]
[421207023,1777253440083,-300.0,0.00018116,2]
[421207024,1777253440092,-300.0,0.00018116,2]
[421207025,1777253440102,-915.15319002,0.00018219,2]
[421207026,1777253440111,-151.0,0.00018715,2]
[421207027,1777253440121,-151.36405554,0.00018978,2]
[421207028,1777253440131,-726.19539517,0.00018978,2]
[421207029,1777253440142,-328.23693419,0.00018978,2]
[421207031,1777253440151,-500.0,0.00019077,2]
[421207032,1777253440161,-500.0,0.00019077,2]
[421207033,1777253440170,-500.0,0.00019077,2]
[421207034,1777253440180,-279.2897065,0.00019077,2]
[421207035,1777253440191,-220.7102935,0.00019077,2]
[421207036,1777253440200,-500.0,0.00019077,2]
[421207037,1777253440210,-500.0,0.00019077,2]
[421207038,1777253440219,-6.88590327,0.00019077,2]
[421207039,1777253440232,-298.09247911,0.00019077,2]
[421207040,1777253440241,-500.0,0.00019077,2]
[421207041,1777253440251,-467.24586909,0.00019077,2]
[421207042,1777253440262,-32.75413091,0.00019077,2]
[421207043,1777253440271,-255.2427026,0.00019077,2]
[421207044,1777253440287,-244.7572974,0.00019077,2]
[421207045,1777253440297,-500.0,0.00019077,2]
[421207046,1777253440306,-500.0,0.00019077,2]
[421207048,1777253440316,-500.0,0.00019077,2]
[421207049,1777253440325,-500.0,0.00019077,2]
[421207050,1777253440335,-500.0,0.00019077,2]
[421207052,1777253440344,-500.0,0.00019077,2]
[421207054,1777253440354,-500.0,0.00019077,2]
[421207056,1777253440364,-500.0,0.00019077,2]
[421207058,1777253440373,-500.0,0.00019077,2]
[421207060,1777253440383,-374.861143,0.00019077,2]
[421207062,1777253440392,-500.0,0.00019077,2]
[421207064,1777253440402,-500.0,0.00019077,2]
[421207065,1777253440411,-500.0,0.00019077,2]
[421207066,1777253440420,-500.0,0.00019077,2]
[421207067,1777253440430,-500.0,0.00019077,2]
[421207068,1777253440440,-500.0,0.00019077,2]
[421207069,1777253440450,-337.49214347,0.00019077,2]
[421207070,1777253440460,-500.0,0.00019077,2]
[421207071,1777253440469,-7368.5886492,0.00019078,2]
[421207072,1777253440481,-43.85638149,0.00019078,2]
[421207073,1777253440492,-9521.71356491,0.00019078,2]
[421207074,1777253440502,-6554.71044446,0.00019078,2]
[421207075,1777253440579,-480.91883814,0.00019078,2]
[421207076,1777253440592,-746.64523705,0.00019078,2]
[421207077,1777253440604,-247478.26746676,0.00019078,2]
[421207087,1777253440742,-1053.44113708,0.00019078,2]
[421207089,1777253440753,-1040.11788978,0.00019078,2]
[421207209,1777253443620,-407.64,0.00019078,2]
[421207210,1777253443632,-12601.56590268,0.00019078,2]
[421207211,1777253443655,-2700.0000006,0.00019078,2]
[421207212,1777253443666,-382.91828592,0.00019078,2]
[421207213,1777253443678,-1588.66910052,0.00019078,2]
[421207222,1777253447315,-579.40833256,0.00019078,2]
[421207226,1777253451413,221.14502601,0.00025436,120]
[421207234,1777253548653,308.64,0.00025436,120]
[421207235,1777253702186,255.93,0.00025436,120]
[421207236,1777253771702,151.0,0.00025436,120]
[421207239,1777253985167,224.0,0.00025453,120]
[421207240,1777254552119,-151.0,0.00011953,2]
[421207241,1777254552139,-1687.38277045,0.00012323,10]
[421207242,1777254552159,-151.0,0.00012447,2]
[421207243,1777254552179,-382.98102195,0.00012832,10]
[421207260,1777254639798,-2105.35719235,0.00012768,10]
[421207261,1777254639851,-2894.64280765,0.00012768,10]
[421207262,1777254639861,-150.0,0.00012897,2]
[421207263,1777254639871,-1000.0,0.00013699,2]
[421207264,1777254639880,-198.24310506,0.00014269,2]
[421207265,1777254639890,-163.0743128,0.00014711,2]
[421207266,1777254639899,-177.0,0.00014897,2]
[421207267,1777254639909,-1200.0,0.00015865,2]
[421207268,1777254639918,-300.0,0.00015868,2]
[421207269,1777254639927,-300.0,0.00015868,2]
[421207270,1777254639937,-300.0,0.00015868,2]
[421207271,1777254639946,-12916.12610644,0.00015869,2]
[421207272,1777254639956,-204.0,0.00016897,2]
[421207273,1777254639965,-420.0,0.00017351,2]
[421207274,1777254639975,-1680.0,0.00017435,2]
[421207275,1777254639985,-327.5123336,0.00017893,2]
[421207276,1777254639995,-151.0,0.00017893,2]
[421207277,1777254640004,-935.48169389,0.00018219,2]
[421207278,1777254640016,-504.12584824,0.00018316,5]
[421207279,1777254640030,-167.53069881,0.00018615,2]
[421207280,1777254640039,-537.6845,0.00018692,2]
[421207281,1777254640048,-1189.03073431,0.00018692,2]
[421207282,1777254640058,-2150.738,0.00018692,2]
[421207283,1777254640067,-325.4528442,0.00018712,2]
[421207284,1777254640076,-325.3967881,0.00018715,2]
[421207285,1777254640086,-459.2811833,0.00018715,2]
[421207286,1777254640095,-325.4528442,0.00018715,2]
[421207287,1777254640106,-325.478049,0.00018715,2]
[421207288,1777254640116,-286.047165,0.00018715,2]
[421207289,1777254640126,-455.9061778,0.00018715,2]
[421207290,1777254640135,-557.5788265,0.00018747,2]
[421207291,1777254640146,-2056.46578745,0.00018767,2]
[421207292,1777254640158,-578.20924308,0.00018802,2]
[421207293,1777254640167,-599.60298507,0.00018857,2]
[421207294,1777254640177,-500.0,0.00018865,2]
[421207295,1777254640187,-500.0,0.00018866,2]
[421207296,1777254640197,-500.0,0.00018866,2]
[421207298,1777254640206,-500.0,0.00018866,2]
[421207299,1777254640216,-500.0,0.00018866,2]
[421207300,1777254640225,-500.0,0.00018866,2]
[421207301,1777254640239,-500.0,0.00018866,2]
[421207302,1777254640248,-500.0,0.00018866,2]
[421207303,1777254640257,-500.0,0.00018866,2]
[421207304,1777254640266,-500.0,0.00018866,2]
[421207305,1777254640276,-500.0,0.00018866,2]
[421207306,1777254640286,-500.0,0.00018866,2]
[421207307,1777254640294,-500.0,0.00018866,2]
[421207308,1777254640304,-500.0,0.00018866,2]
[421207309,1777254640314,-500.0,0.00018866,2]
[421207310,1777254640325,-500.0,0.00018866,2]
[421207311,1777254640334,-500.0,0.00018866,2]
[421207312,1777254640345,-500.0,0.00018866,2]
[421207313,1777254640355,-500.0,0.00018866,2]
[421207314,1777254640364,-500.0,0.00018866,2]
[421207315,1777254640374,-500.0,0.00018866,2]
[421207316,1777254640383,-594.12233608,0.00018866,2]
[421207317,1777254640392,-160.05132693,0.00018866,2]
[421207318,1777254640402,-218.77197867,0.00018866,2]
[421207319,1777254640411,-500.0,0.00018866,2]
[421207320,1777254640421,-500.0,0.00018866,2]
[421207321,1777254640431,-500.0,0.00018866,2]
[421207322,1777254640441,-98.71777951,0.00018866,2]
[421207353,1777254640908,-389.9284953,0.00018866,2]
[421207373,1777254643537,-642.99355765,0.00018605,2]
[421207375,1777254643593,-541.65,0.00018605,2]
[421207376,1777254643605,-1634.0094616,0.00018605,2]
[421207377,1777254643617,-585.97660249,0.00018605,2]
[421207378,1777254643628,-1.77037826,0.00018605,2]
[421207379,1777254643641,-11.35372519,0.00018866,2]
[421207380,1777254643651,-325.88723091,0.00018867,2]
[421207381,1777254643660,-7035.81799229,0.00018867,2]
[421207382,1777254643672,-388.39333647,0.00018867,2]
[421207383,1777254643684,-607.32887644,0.00018867,2]
[421207384,1777254643699,-33933.06637927,0.00018867,2]
[421207385,1777254643710,-231.0,0.00018897,2]
[421207386,1777254643719,-1054.43232936,0.000189,2]
[421207387,1777254643729,-153.69830269,0.00018904,2]
[421207388,1777254643739,-256.039,0.00018904,2]
[421207389,1777254643749,-187.94496176,0.00018904,2]
[421207390,1777254643759,-621.78829552,0.00018912,2]
[421207391,1777254643769,-151.0,0.00018955,2]
[421207392,1777254643779,-162.7428717,0.00018955,2]
[421207393,1777254643789,-445.202766,0.00018955,2]
[421207394,1777254643799,-303.40439404,0.00018955,2]
[421207395,1777254643808,-537.6845,0.00018955,2]
[421207396,1777254643818,-160.06562131,0.00018966,2]
[421207397,1777254643828,-644.79446246,0.00018967,2]
[421207398,1777254643838,-306.47542794,0.00018973,2]
[421207399,1777254643848,-440.0,0.00018973,2]
[421207400,1777254643857,-12858.76031323,0.00019,7]
[421207401,1777254643867,-541.59138019,0.00019,30]
[421207402,1777254643876,-668.65185757,0.00019022,2]
[421207403,1777254643887,-500.0,0.00019077,2]
[421207404,1777254643896,-440.70871326,0.00019077,2]
[421207405,1777254643906,-500.0,0.00019077,2]
[421207406,1777254643916,-500.0,0.00019077,3]
[421207407,1777254643927,-500.0,0.00019077,4]
[421207408,1777254643937,-500.0,0.00019077,5]
[421207409,1777254643946,-339.75847819,0.00019077,2]
[421207410,1777254643956,-693.3919763,0.00019077,2]
[421207411,1777254643966,-32793.7468276,0.00019078,2]
[421207412,1777254643976,-1447.1784179,0.00019078,2]
[421207413,1777254643985,-6672.69933151,0.00019078,2]
[421207414,1777254643995,-600.0,0.00019088,2]
[421207415,1777254644004,-757.22,0.00019091,7]
[421207416,1777254644015,-757.22,0.00019091,7]
[421207417,1777254644024,-757.22,0.00019091,7]
[421207418,1777254644034,-757.22,0.00019091,7]
[421207419,1777254644044,-757.22,0.00019091,7]
[421207420,1777254644054,-757.22,0.00019091,7]
[421207421,1777254644064,-757.22,0.00019091,7]
[421207422,1777254644075,-757.22,0.00019091,7]
[421207423,1777254644085,-757.22,0.00019091,7]
[421207424,1777254644095,-757.22,0.00019091,7]
[421207425,1777254644105,-152.0,0.00019104,7]
[421207426,1777254644115,-160.0,0.0001911,7]
[421207427,1777254644125,-10249.63507656,0.0001911,7]
[421207428,1777254644142,-562.84226044,0.0001911,7]
[421207429,1777254644152,-21464.954675,0.0001911,7]
[421207430,1777254644163,-160.0,0.0001911,7]
[421207431,1777254644173,-3646.262386,0.0001911,7]
[421207432,1777254644184,-7132.524772,0.0001911,7]
[421207433,1777254644195,-2008.36265826,0.00019113,2]
[421207434,1777254644206,-152.0,0.00019115,7]
[421207435,1777254644216,-152.0,0.00019115,7]
[421207436,1777254644226,-152.0,0.00019115,7]
[421207437,1777254644237,-719.04747942,0.00019132,2]
[421207438,1777254644248,-152.0,0.00019134,7]
[421207439,1777254644259,-500.0,0.00019139,2]
[421207440,1777254644269,-1211.0,0.00019161,2]
[421207441,1777254644278,-185.0,0.00019165,2]
[421207442,1777254644288,-500.0,0.00019177,6]
[421207443,1777254644299,-510.67617678,0.00019177,7]
[421207444,1777254644310,-834.351239,0.00019178,2]
[421207445,1777254644323,-151.317496,0.00019178,2]
[421207446,1777254644334,-236.519688,0.00019178,2]
[421207447,1777254644343,-3535.51643369,0.00019178,2]
[421207454,1777254646746,-7494.29875931,0.00019178,2]
[421207455,1777254646756,-500.43242175,0.00019178,2]
[421207456,1777254646766,-500.0,0.00019178,2]
[421207457,1777254646776,-500.0,0.00019178,2]
[421207458,1777254646786,-500.0,0.00019178,2]
[421207459,1777254646795,-263.85012807,0.00019178,2]
[421207460,1777254646838,-236.14987193,0.00019178,2]
[421207461,1777254646847,-790.74,0.00019178,2]
[421207462,1777254646869,-500.0,0.00019178,2]
[421207463,1777254646880,-756.47,0.00019178,2]
[421207464,1777254646891,-500.0,0.00019178,2]
[421207465,1777254646901,-500.0,0.00019178,2]
[421207466,1777254646912,-500.0,0.00019178,2]
[421207467,1777254646923,-500.0,0.00019178,2]
[421207468,1777254646933,-500.0,0.00019178,2]
[421207469,1777254646944,-2403.7,0.00019178,2]
[421207470,1777254646954,-500.0,0.00019178,2]
[421207471,1777254646965,-500.0,0.00019178,2]
[421207472,1777254646976,-500.0,0.00019178,2]
[421207473,1777254646987,-500.0,0.00019178,2]
[421207474,1777254646997,-1000.0,0.00019178,2]
[421207475,1777254647008,-972.16,0.00019178,2]
[421207476,1777254647019,-500.0,0.00019178,2]
[421207477,1777254647030,-569.19,0.00019178,2]
[421207478,1777254647040,-500.0,0.00019178,2]
[421207479,1777254647051,-500.0,0.00019178,2]
[421207480,1777254647061,-500.0,0.00019178,2]
[421207481,1777254647071,-500.0,0.00019178,2]
[421207482,1777254647081,-500.0,0.00019178,2]
[421207483,1777254647091,-500.0,0.00019178,2]
[421207484,1777254647102,-1442.65,0.00019178,2]
[421207485,1777254647113,-252.98667347,0.00019178,2]
[421207486,1777254647124,-1126.82,0.00019178,2]
[421207487,1777254647136,-500.0,0.00019178,2]
[421207488,1777254647147,-500.0,0.00019178,2]
[421207489,1777254647157,-2813.26,0.00019178,2]
[421207490,1777254647168,-500.0,0.00019178,2]
[421207491,1777254647178,-1346.48,0.00019178,2]
[421207492,1777254647189,-387.03440784,0.00019178,2]
[421207493,1777254647200,-1252.42,0.00019178,2]
[421207494,1777254647211,-500.33478894,0.00019178,2]
[421207495,1777254647223,-500.0,0.00019178,2]
[421207496,1777254647234,-500.0,0.00019178,2]
[421207497,1777254647245,-1549.32,0.00019178,2]
[421207498,1777254647256,-948.92,0.00019178,2]
[421207499,1777254647267,-1094.0,0.00019178,2]
[421207500,1777254647279,-500.0,0.00019178,2]
[421207501,1777254647290,-501.74740037,0.00019178,2]
[421207502,1777254647302,-500.0,0.00019178,2]
[421207503,1777254647313,-500.59167131,0.00019178,2]
[421207504,1777254647324,-500.0,0.00019178,2]
[421207505,1777254647335,-501.22114314,0.00019178,2]
[421207506,1777254647346,-1453.43,0.00019178,2]
[421207507,1777254647358,-500.0,0.00019178,2]
[421207508,1777254647369,-214.69410205,0.00019178,2]
[421207509,1777254647379,-500.0,0.00019178,2]
[421207510,1777254647390,-500.0,0.00019178,2]
[421207511,1777254647400,-500.0,0.00019178,2]
[421207512,1777254647411,-500.0,0.00019178,2]
[421207513,1777254647421,-500.0,0.00019178,2]
[421207514,1777254647432,-1029.14,0.00019178,2]
[421207515,1777254647443,-504.97681647,0.00019178,2]
[421207516,1777254647455,-640.66,0.00019178,2]
[421207517,1777254647465,-500.0,0.00019178,2]
[421207518,1777254647476,-501.00330087,0.00019178,2]
[421207519,1777254647487,-500.0,0.00019178,2]
[421207520,1777254647498,-500.0,0.00019178,2]
[421207521,1777254647508,-1473.93,0.00019178,2]
[421207522,1777254647518,-2591.06,0.00019178,2]
[421207523,1777254647531,-592.62248773,0.00019178,2]
[421207524,1777254647542,-500.0,0.00019178,2]
[421207525,1777254647552,-500.0,0.00019178,2]
[421207526,1777254647563,-500.0,0.00019178,2]
[421207527,1777254647574,-500.30984728,0.00019178,2]
[421207528,1777254647587,-500.0,0.00019178,2]
[421207529,1777254647598,-500.0,0.00019178,2]
[421207530,1777254647609,-1168.16,0.00019178,2]
[421207531,1777254647619,-296.7809789,0.00019178,2]
[421207532,1777254647630,-506.56197781,0.00019178,2]
[421207533,1777254647641,-1443.10678148,0.00019178,2]
[421207534,1777254647656,-74.48321852,0.00019178,2]
[421207535,1777254647666,-494.55105018,0.00019178,2]
[421207536,1777254647677,-67.97347896,0.00019178,2]
[421207537,1777254647706,-721.72652104,0.00019178,2]
[421207538,1777254647717,-501.05828722,0.00019178,2]
[421207539,1777254647729,-501.78578801,0.00019178,2]
[421207540,1777254647739,-500.88879188,0.00019178,2]
[421207541,1777254647750,-500.0,0.00019178,2]
[421207542,1777254647760,-264.73914353,0.00019178,2]
[421207543,1777254647770,-500.0,0.00019178,2]
[421207544,1777254647781,-578.12,0.00019178,2]
[421207545,1777254647791,-501.22078944,0.00019178,2]
[421207546,1777254647802,-548.36328011,0.00019178,2]
[421207547,1777254647813,-500.0,0.00019178,2]
[421207548,1777254647824,-500.0,0.00019178,2]
[421207549,1777254647835,-510.75531518,0.00019178,2]
[421207550,1777254647845,-500.0,0.00019178,2]
[421207551,1777254647856,-500.0,0.00019178,2]
[421207552,1777254647867,-500.0,0.00019178,2]
[421207553,1777254647878,-500.0,0.00019178,2]
[421207554,1777254647889,-500.0,0.00019178,2]
[421207555,1777254647900,-369.27508165,0.00019178,2]
[421207556,1777254647910,-536.2,0.00019178,2]
[421207557,1777254647920,-281.92999931,0.00019178,2]
[421207558,1777254647930,-499.00536927,0.00019178,2]
[421207559,1777254647940,-500.0,0.00019178,2]
[421207560,1777254647950,-500.0,0.00019178,2]
[421207561,1777254647960,-410.85197737,0.00019178,2]
[421207562,1777254647973,-92.06872196,0.00019178,2]
[421207563,1777254647983,-448.96377156,0.00019178,2]
[421207564,1777254718398,178.99031075,0.00025455,120]
[421207565,1777254718689,178.99031075,0.00025455,120]
[421207566,1777254718980,178.99031075,0.00025455,120]
[421207567,1777254719312,178.99031075,0.00025455,120]
[421207568,1777254719608,178.99031075,0.00025455,120]
[421207569,1777254719921,178.99031075,0.00025455,120]
[421207570,1777254720241,178.99031075,0.00025455,120]
[421207571,1777254720893,178.99031075,0.00025455,120]
[421207572,1777254804130,500.0,0.00025456,120]
[421207573,1777254891665,172.68366644,0.00025456,120]
[421207574,1777254891705,155.72659607,0.00025456,120]
[421207575,1777254891971,172.68366644,0.00025456,120]
[421207576,1777254892278,172.68366644,0.00025456,120]
[421207577,1777254892593,172.68366644,0.00025456,120]
[421207578,1777254893196,172.68366644,0.00025456,120]
[421207579,1777254901726,172.68366644,0.00025527,120]
[421207580,1777255011424,155.72659606,0.00025527,120]
[421207590,1777255181767,1037.49186605,0.00025527,120]
[421207594,1777255241882,685.17842952,0.00025527,120]
[421207595,1777255241945,4319.72,0.00011,30]
[421207596,1777255246356,353.57279372,0.00025527,120]
[421207597,1777255246459,4940.37724367,7.6e-05,2]
[421207599,1777255247409,323.33001726,0.00025527,120]
[421207600,1777255253435,468.64989941,0.00025527,120]
[421207607,1777255422478,5000.0,7.4e-05,10]
[421207608,1777255444540,5000.0,7.4e-05,10]
[421207610,1777255749140,-300.0,7.005e-05,2]
[421207611,1777255749164,-5000.0,7.006e-05,2]
[421207612,1777255749186,-519.0,7.006e-05,2]
[421207613,1777255749208,-150.0,7.042e-05,2]
[421207614,1777255749230,-151.0,7.077e-05,2]
[421207615,1777255749253,-1200.0,7.296e-05,2]
[421207616,1777255749275,-30591.08267002,7.6e-05,2]
[421207617,1777255749295,-151.0,7.643e-05,2]
[421207618,1777255749318,-420.0,7.706e-05,2]
[421207619,1777255749338,-7864.21305498,7.751e-05,2]
[421207620,1777255749363,-300.0,7.751e-05,2]
[421207621,1777255749387,-300.0,7.751e-05,2]
[421207622,1777255749412,-300.0,7.751e-05,2]
[421207623,1777255749436,-300.0,7.751e-05,2]
[421207624,1777255749460,-300.0,7.751e-05,2]
[421207625,1777255749485,-300.0,7.751e-05,2]
[421207626,1777255749511,-300.0,7.751e-05,2]
[421207627,1777255749538,-300.0,7.751e-05,2]
[421207628,1777255749566,-300.0,7.751e-05,2]
[421207629,1777255749591,-300.0,7.751e-05,2]
[421207630,1777255749617,-300.0,7.751e-05,2]
[421207631,1777255749645,-300.0,7.751e-05,2]
[421207632,1777255749670,-300.0,7.751e-05,2]
[421207633,1777255749696,-300.0,7.751e-05,2]
[421207634,1777255749720,-300.0,7.751e-05,2]
[421207635,1777255749743,-600.0,7.905e-05,2]
[421207636,1777255749764,-1680.0,8.026e-05,2]
[421207637,1777255749786,-587.0,8.476e-05,2]
[421207638,1777255749813,-720.0,8.696e-05,2]
[421207639,1777255749837,-177.0,9.042e-05,2]
[421207640,1777255749858,-823.0,9.324e-05,2]
[421207641,1777255749880,-151.0,9.458e-05,2]
[421207642,1777255749905,-864.0,9.565e-05,2]
[421207643,1777255749926,-252.99892324,9.753e-05,2]
[421207644,1777255749951,-500.0,9.999e-05,2]
[421207645,1777255749975,-635.41910874,9.999e-05,2]
[421207646,1777255749998,-500.0,9.999e-05,2]
[421207647,1777255750232,-576.66401104,9.999e-05,2]
[421207648,1777255750256,-399.34692623,9.999e-05,2]
[421207649,1777255750277,-21717.89759036,0.0001,2]
[421207650,1777255750296,-2152.2436512,0.0001,2]
[421207651,1777255750315,-213.28734584,0.0001,2]
[421207652,1777255750339,-1000.0,0.00010522,2]
[421207653,1777255750358,-500.0,0.00010999,2]
[421207654,1777255750378,-331.51121828,0.00010999,2]
[421207655,1777255750398,-642.62298585,0.00010999,2]
[421207656,1777255750418,-642.62298585,0.00010999,2]
[421207657,1777255750439,-642.62298585,0.00010999,2]
[421207658,1777255750461,-642.62298585,0.00010999,2]
[421207659,1777255750481,-642.62298585,0.00010999,2]
[421207660,1777255750501,-642.62298585,0.00010999,2]
[421207661,1777255750520,-642.62298585,0.00010999,2]
[421207662,1777255750542,-642.62298585,0.00010999,2]